[Event "Titled Tuesday Blitz July 4 Early 2023"]
[White "Xavier_mompel"]
[Black "Kuznetsov, Mikhail"]
[BlackFideId "4117190"]
[WhiteElo "2255"]
[BlackElo "2406"]
[Result "0-1"]
[Round "10"]
[TimeControl "180+2"]
[Date "2023.07.04"]
[WhiteClock "0:00:00"]
[BlackClock "0:00:05"]
[Board "127"]

1. e4 {[%clk 0:03:00]}  c6 {[%clk 0:02:59]} 2. Nf3 {[%clk 0:02:59]}  d5 {[%clk 0:03:00]} 3. Nc3 {[%clk 0:03:00]}  a6 {[%clk 0:02:59]} 4. Be2 {[%clk 0:02:51]}  Bg4 {[%clk 0:02:54]} 5. O-O {[%clk 0:02:45]}  e6 {[%clk 0:02:53]} 6. h3 {[%clk 0:02:44]}  Bh5 {[%clk 0:02:52]} 7. d4 {[%clk 0:02:40]}  Nf6 {[%clk 0:02:48]} 8. exd5 {[%clk 0:02:32]}  cxd5 {[%clk 0:02:47]} 9. Ne5 {[%clk 0:02:27]}  Bxe2 {[%clk 0:02:45]} 10. Qxe2 {[%clk 0:02:28]}  Nc6 {[%clk 0:02:45]} 11. Nxc6 {[%clk 0:02:28]}  bxc6 {[%clk 0:02:46]} 12. Be3 {[%clk 0:02:19]}  Bd6 {[%clk 0:02:39]} 13. Rfe1 {[%clk 0:01:58]}  O-O {[%clk 0:02:37]} 14. Rad1 {[%clk 0:01:56]}  Rb8 {[%clk 0:02:33]} 15. Na4 {[%clk 0:01:54]}  Qa5 {[%clk 0:02:25]} 16. b3 {[%clk 0:01:51]}  Ne4 {[%clk 0:02:23]} 17. f3 {[%clk 0:01:40]}  Nc3 {[%clk 0:01:53]} 18. Qd2 {[%clk 0:01:25]}  Bb4 {[%clk 0:01:32]} 19. a3 {[%clk 0:01:25]}  Bxa3 {[%clk 0:01:12]} 20. Nxc3 {[%clk 0:00:58]}  Bb4 {[%clk 0:01:11]} 21. Ra1 {[%clk 0:00:56]}  Qb6 {[%clk 0:00:52]} 22. Qd3 {[%clk 0:00:51]}  a5 {[%clk 0:00:48]} 23. Na4 {[%clk 0:00:48]}  Qb5 {[%clk 0:00:44]} 24. Red1 {[%clk 0:00:40]}  Rfc8 {[%clk 0:00:38]} 25. Qxb5 {[%clk 0:00:16]}  cxb5 {[%clk 0:00:37]} 26. Nc5 {[%clk 0:00:17]}  Bc3 {[%clk 0:00:21]} 27. Ra2 {[%clk 0:00:17]}  a4 {[%clk 0:00:16]} 28. bxa4 {[%clk 0:00:15]}  bxa4 {[%clk 0:00:17]} 29. Nxa4 {[%clk 0:00:10]}  Bb4 {[%clk 0:00:15]} 30. Nc5 {[%clk 0:00:10]}  Bc3 {[%clk 0:00:11]} 31. Ra3 {[%clk 0:00:08]}  Bb4 {[%clk 0:00:03]} 32. Rb3 {[%clk 0:00:08]}  Ba5 {[%clk 0:00:02]} 33. Rdb1 {[%clk 0:00:07]}  Rxb3 {[%clk 0:00:01]} 34. Rxb3 {[%clk 0:00:07]}  Bc7 {[%clk 0:00:02]} 35. Rb7 {[%clk 0:00:07]}  Bd6 {[%clk 0:00:02]} 36. c3 {[%clk 0:00:05]}  h5 {[%clk 0:00:03]} 37. Rd7 {[%clk 0:00:04]}  Bg3 {[%clk 0:00:02]} 38. Bf2 {[%clk 0:00:04]}  Bf4 {[%clk 0:00:02]} 39. Be1 {[%clk 0:00:02]}  Be3+ {[%clk 0:00:02]} 40. Kf1 {[%clk 0:00:03]}  Bg5 {[%clk 0:00:02]} 41. Ke2 {[%clk 0:00:03]}  Bf6 {[%clk 0:00:02]} 42. Kd3 {[%clk 0:00:04]}  h4 {[%clk 0:00:01]} 43. Bd2 {[%clk 0:00:03]}  g6 {[%clk 0:00:02]} 44. Bf4 {[%clk 0:00:03]}  Kg7 {[%clk 0:00:03]} 45. Be5 {[%clk 0:00:03]}  Bxe5 {[%clk 0:00:03]} 46. Nxe6+ {[%clk 0:00:03]}  Kf6 {[%clk 0:00:01]} 47. dxe5+ {[%clk 0:00:04]}  Kxe6 {[%clk 0:00:02]} 48. Rd6+ {[%clk 0:00:04]}  Kxe5 {[%clk 0:00:02]} 49. Rd7 {[%clk 0:00:04]}  Ke6 {[%clk 0:00:02]} 50. Rb7 {[%clk 0:00:04]}  Ra8 {[%clk 0:00:02]} 51. Kd4 {[%clk 0:00:04]}  Ra4+ {[%clk 0:00:02]} 52. Ke3 {[%clk 0:00:04]}  Ra2 {[%clk 0:00:02]} 53. Rb6+ {[%clk 0:00:04]}  Kf5 {[%clk 0:00:02]} 54. Rb4 {[%clk 0:00:04]}  Rxg2 {[%clk 0:00:02]} 55. Rxh4 {[%clk 0:00:05]}  g5 {[%clk 0:00:02]} 56. Rh7 {[%clk 0:00:04]}  f6 {[%clk 0:00:02]} 57. Kd4 {[%clk 0:00:03]}  Ke6 {[%clk 0:00:02]} 58. Ke3 {[%clk 0:00:02]}  Rc2 {[%clk 0:00:03]} 59. Kd3 {[%clk 0:00:02]}  Rg2 {[%clk 0:00:02]} 60. Ke3 {[%clk 0:00:02]}  Rg1 {[%clk 0:00:02]} 61. Kd3 {[%clk 0:00:01]}  Rd1+ {[%clk 0:00:02]} 62. Ke2 {[%clk 0:00:01]}  Rc1 {[%clk 0:00:02]} 63. Kd3 {[%clk 0:00:02]}  Rg1 {[%clk 0:00:02]} 64. Ke2 {[%clk 0:00:02]}  Ke5 {[%clk 0:00:02]} 65. Ke3 {[%clk 0:00:03]}  Re1+ {[%clk 0:00:02]} 66. Kd3 {[%clk 0:00:03]}  Kf4 {[%clk 0:00:02]} 67. Kd2 {[%clk 0:00:02]}  Re6 {[%clk 0:00:01]} 68. Rd7 {[%clk 0:00:01]}  Kxf3 {[%clk 0:00:01]} 69. Rxd5 {[%clk 0:00:02]}  Ke4 {[%clk 0:00:01]} 70. Rd4+ {[%clk 0:00:02]}  Ke5 {[%clk 0:00:01]} 71. Ke3 {[%clk 0:00:02]}  f5 {[%clk 0:00:02]} 72. Kf3 {[%clk 0:00:03]}  Rc6 {[%clk 0:00:01]} 73. Rd3 {[%clk 0:00:03]}  Rc4 {[%clk 0:00:02]} 74. Kg3 {[%clk 0:00:03]}  Rc5 {[%clk 0:00:01]} 75. Re3+ {[%clk 0:00:02]}  Kf6 {[%clk 0:00:02]} 76. Rd3 {[%clk 0:00:03]}  Rc4 {[%clk 0:00:02]} 77. Kf3 {[%clk 0:00:02]}  Kg6 {[%clk 0:00:02]} 78. Rd6+ {[%clk 0:00:01]}  Kh5 {[%clk 0:00:02]} 79. Rd3 {[%clk 0:00:02]}  Kh4 {[%clk 0:00:01]} 80. Kg2 {[%clk 0:00:03]}  f4 {[%clk 0:00:02]} 81. Rf3 {[%clk 0:00:01]}  Rc5 {[%clk 0:00:02]} 82. Rd3 {[%clk 0:00:02]}  Re5 {[%clk 0:00:02]} 83. Rd7 {[%clk 0:00:02]}  Re2+ {[%clk 0:00:02]} 84. Kf3 {[%clk 0:00:02]}  Re3+ {[%clk 0:00:03]} 85. Kg2 {[%clk 0:00:03]}  Rg3+ {[%clk 0:00:03]} 86. Kf2 {[%clk 0:00:02]}  Kxh3 {[%clk 0:00:03]} 87. Rh7+ {[%clk 0:00:03]}  Kg4 {[%clk 0:00:04]} 88. c4 {[%clk 0:00:03]}  Rc3 {[%clk 0:00:04]} 89. Rc7 {[%clk 0:00:03]}  Rc2+ {[%clk 0:00:03]} 90. Kf1 {[%clk 0:00:02]}  Kf3 {[%clk 0:00:04]} 91. Ke1 {[%clk 0:00:02]}  g4 {[%clk 0:00:04]} 92. c5 {[%clk 0:00:03]}  g3 {[%clk 0:00:04]} 93. c6 {[%clk 0:00:00]}  g2 {[%clk 0:00:05]} 0-1


[Site "https://www.chess.com"]

[Event "Titled Tuesday Blitz July 4 Early 2023"]
[White "Ncatt"]
[Black "VoicelessFeather"]
[WhiteElo "2406"]
[BlackElo "2230"]
[Result "0-1"]
[Round "10"]
[TimeControl "180+2"]
[Date "2023.07.04"]
[WhiteClock "0:00:02"]
[BlackClock "0:00:08"]
[Board "128"]

1. g3 {[%clk 0:03:00]}  d5 {[%clk 0:02:58]} 2. Bg2 {[%clk 0:03:01]}  Nf6 {[%clk 0:02:58]} 3. Nf3 {[%clk 0:03:01]}  Bg4 {[%clk 0:02:56]} 4. O-O {[%clk 0:03:01]}  e6 {[%clk 0:02:52]} 5. h3 {[%clk 0:03:00]}  Bh5 {[%clk 0:02:49]} 6. b3 {[%clk 0:03:00]}  Bd6 {[%clk 0:02:47]} 7. Bb2 {[%clk 0:03:00]}  O-O {[%clk 0:02:47]} 8. d4 {[%clk 0:03:00]}  c5 {[%clk 0:02:42]} 9. c3 {[%clk 0:02:59]}  Nc6 {[%clk 0:02:42]} 10. Nbd2 {[%clk 0:02:57]}  Rc8 {[%clk 0:02:34]} 11. e3 {[%clk 0:02:57]}  Ne4 {[%clk 0:02:29]} 12. g4 {[%clk 0:02:52]}  Bg6 {[%clk 0:02:24]} 13. c4 {[%clk 0:02:46]}  f5 {[%clk 0:02:03]} 14. cxd5 {[%clk 0:02:43]}  exd5 {[%clk 0:01:56]} 15. dxc5 {[%clk 0:02:42]}  Bxc5 {[%clk 0:01:52]} 16. Rc1 {[%clk 0:02:22]}  fxg4 {[%clk 0:01:36]} 17. hxg4 {[%clk 0:02:20]}  Nb4 {[%clk 0:01:24]} 18. Ne5 {[%clk 0:02:14]}  Nxf2 {[%clk 0:01:07]} 19. Rxf2 {[%clk 0:01:45]}  Bxe3 {[%clk 0:01:07]} 20. Ndf3 {[%clk 0:01:39]}  Qb6 {[%clk 0:00:50]} 21. Rxc8 {[%clk 0:01:31]}  Bxf2+ {[%clk 0:00:46]} 22. Kh2 {[%clk 0:01:30]}  Rxc8 {[%clk 0:00:44]} 23. a3 {[%clk 0:01:30]}  Nc2 {[%clk 0:00:21]} 24. Qxd5+ {[%clk 0:01:24]}  Kh8 {[%clk 0:00:20]} 25. Ng5 {[%clk 0:01:11]}  Qc7 {[%clk 0:00:17]} 26. Kh1 {[%clk 0:01:03]}  Ne3 {[%clk 0:00:14]} 27. Nxg6+ {[%clk 0:00:35]}  hxg6 {[%clk 0:00:14]} 28. Qf3 {[%clk 0:00:33]}  Nxg2 {[%clk 0:00:13]} 29. Kxg2 {[%clk 0:00:30]}  Qc2 {[%clk 0:00:12]} 30. Bxg7+ {[%clk 0:00:14]}  Kxg7 {[%clk 0:00:12]} 31. Qf7+ {[%clk 0:00:12]}  Kh6 {[%clk 0:00:12]} 32. Qh7+ {[%clk 0:00:13]}  Kxg5 {[%clk 0:00:12]} 33. Qe7+ {[%clk 0:00:13]}  Kf4 {[%clk 0:00:11]} 34. Qd6+ {[%clk 0:00:13]}  Ke3 {[%clk 0:00:11]} 35. Qe5+ {[%clk 0:00:12]}  Kd3 {[%clk 0:00:11]} 36. Qd5+ {[%clk 0:00:12]}  Kc3 {[%clk 0:00:11]} 37. Qe5+ {[%clk 0:00:12]}  Kd2 {[%clk 0:00:10]} 38. Kxf2 {[%clk 0:00:09]}  Rf8+ {[%clk 0:00:09]} 39. Kg2 {[%clk 0:00:07]}  Qc6+ {[%clk 0:00:09]} 40. Kg1 {[%clk 0:00:06]}  Qb6+ {[%clk 0:00:08]} 41. Kh1 {[%clk 0:00:05]}  Rf1+ {[%clk 0:00:08]} 42. Kh2 {[%clk 0:00:06]}  Qf2+ {[%clk 0:00:08]} 43. Kh3 {[%clk 0:00:02]}  Rh1+ {[%clk 0:00:08]} 0-1


[Site "https://www.chess.com"]

[Event "Titled Tuesday Blitz July 4 Early 2023"]
[White "Bazilius, Augustinas"]
[Black "Schachpanda_Youtube"]
[WhiteFideId "12832251"]
[WhiteElo "2395"]
[BlackElo "2212"]
[Result "0-1"]
[Round "10"]
[TimeControl "180+2"]
[Date "2023.07.04"]
[WhiteClock "0:00:50"]
[BlackClock "0:01:00"]
[Board "130"]

1. d4 {[%clk 0:03:00]}  d5 {[%clk 0:02:59]} 2. c4 {[%clk 0:03:00]}  e6 {[%clk 0:02:59]} 3. Nf3 {[%clk 0:03:00]}  Nf6 {[%clk 0:02:58]} 4. g3 {[%clk 0:03:01]}  Be7 {[%clk 0:02:58]} 5. Bg2 {[%clk 0:03:01]}  O-O {[%clk 0:02:58]} 6. O-O {[%clk 0:03:02]}  dxc4 {[%clk 0:02:59]} 7. Ne5 {[%clk 0:03:02]}  Nc6 {[%clk 0:02:59]} 8. Bxc6 {[%clk 0:03:03]}  bxc6 {[%clk 0:02:59]} 9. Nxc6 {[%clk 0:03:04]}  Qe8 {[%clk 0:03:00]} 10. Nxe7+ {[%clk 0:03:02]}  Qxe7 {[%clk 0:03:00]} 11. Qa4 {[%clk 0:03:02]}  Bb7 {[%clk 0:02:56]} 12. Qxc4 {[%clk 0:02:59]}  e5 {[%clk 0:02:54]} 13. dxe5 {[%clk 0:02:51]}  Qxe5 {[%clk 0:02:52]} 14. Nc3 {[%clk 0:02:51]}  Rad8 {[%clk 0:02:42]} 15. Bf4 {[%clk 0:02:48]}  Qh5 {[%clk 0:02:40]} 16. Qxc7 {[%clk 0:02:41]}  Rd7 {[%clk 0:02:00]} 17. Qc4 {[%clk 0:01:56]}  Qh3 {[%clk 0:01:55]} 18. f3 {[%clk 0:01:57]}  Ng4 {[%clk 0:01:46]} 19. Rf2 {[%clk 0:01:47]}  Nxf2 {[%clk 0:01:46]} 20. Kxf2 {[%clk 0:01:48]}  Qxh2+ {[%clk 0:01:46]} 21. Ke3 {[%clk 0:01:46]}  Re8+ {[%clk 0:01:41]} 22. Ne4 {[%clk 0:01:47]}  Rde7 {[%clk 0:01:01]} 23. Rd1 {[%clk 0:00:55]}  Bxe4 {[%clk 0:01:00]} 24. fxe4 {[%clk 0:00:54]}  Rxe4+ {[%clk 0:01:00]} 25. Qxe4 {[%clk 0:00:54]}  Rxe4+ {[%clk 0:01:00]} 26. Kxe4 {[%clk 0:00:50]}  Qxe2+ {[%clk 0:01:00]} 0-1


[Site "https://www.chess.com"]

[Event "Titled Tuesday Blitz July 4 Early 2023"]
[White "Rozhkov, Viacheslav"]
[Black "Sailer, Mike"]
[WhiteFideId "4181484"]
[BlackFideId "2012901"]
[WhiteElo "2382"]
[BlackElo "2120"]
[Result "1/2-1/2"]
[Round "10"]
[TimeControl "180+2"]
[Date "2023.07.04"]
[WhiteClock "0:00:19"]
[BlackClock "0:00:08"]
[Board "131"]

1. e4 {[%clk 0:03:00]}  d5 {[%clk 0:02:59]} 2. exd5 {[%clk 0:03:00]}  Qxd5 {[%clk 0:03:00]} 3. Nc3 {[%clk 0:03:00]}  Qd6 {[%clk 0:03:01]} 4. d4 {[%clk 0:03:01]}  Nf6 {[%clk 0:03:01]} 5. Nf3 {[%clk 0:03:01]}  c6 {[%clk 0:03:02]} 6. g3 {[%clk 0:03:00]}  Bf5 {[%clk 0:03:02]} 7. Bg2 {[%clk 0:03:00]}  e6 {[%clk 0:03:03]} 8. O-O {[%clk 0:03:00]}  Be7 {[%clk 0:03:04]} 9. Bf4 {[%clk 0:03:00]}  Qd8 {[%clk 0:03:04]} 10. Qe2 {[%clk 0:03:00]}  h6 {[%clk 0:03:05]} 11. Rad1 {[%clk 0:02:55]}  O-O {[%clk 0:03:05]} 12. Ne5 {[%clk 0:02:52]}  Nbd7 {[%clk 0:03:06]} 13. Ne4 {[%clk 0:02:50]}  Nxe4 {[%clk 0:03:06]} 14. Bxe4 {[%clk 0:02:50]}  Bxe4 {[%clk 0:03:06]} 15. Qxe4 {[%clk 0:02:51]}  Nxe5 {[%clk 0:03:04]} 16. dxe5 {[%clk 0:02:51]}  Qb6 {[%clk 0:03:00]} 17. b3 {[%clk 0:02:47]}  Rad8 {[%clk 0:03:00]} 18. c4 {[%clk 0:02:45]}  Rxd1 {[%clk 0:02:55]} 19. Rxd1 {[%clk 0:02:45]}  Rd8 {[%clk 0:02:56]} 20. Qe2 {[%clk 0:02:40]}  Qc7 {[%clk 0:02:41]} 21. h4 {[%clk 0:02:37]}  Rd7 {[%clk 0:02:33]} 22. h5 {[%clk 0:02:00]}  Qd8 {[%clk 0:02:30]} 23. Rxd7 {[%clk 0:01:58]}  Qxd7 {[%clk 0:02:30]} 24. Kg2 {[%clk 0:01:58]}  a6 {[%clk 0:02:18]} 25. Be3 {[%clk 0:01:54]}  b5 {[%clk 0:02:10]} 26. cxb5 {[%clk 0:01:53]}  cxb5 {[%clk 0:02:09]} 27. Qf3 {[%clk 0:01:48]}  Qc8 {[%clk 0:01:44]} 28. Qe4 {[%clk 0:01:47]}  Bf8 {[%clk 0:01:35]} 29. g4 {[%clk 0:01:43]}  Be7 {[%clk 0:01:16]} 30. Kg3 {[%clk 0:01:30]}  Bf8 {[%clk 0:00:54]} 31. g5 {[%clk 0:01:23]}  hxg5 {[%clk 0:00:53]} 32. Bxg5 {[%clk 0:01:24]}  Qc3+ {[%clk 0:00:48]} 33. Be3 {[%clk 0:01:24]}  Qa1 {[%clk 0:00:44]} 34. a4 {[%clk 0:01:11]}  bxa4 {[%clk 0:00:40]} 35. bxa4 {[%clk 0:01:11]}  Qg1+ {[%clk 0:00:39]} 36. Kh3 {[%clk 0:01:12]}  Qf1+ {[%clk 0:00:38]} 37. Kh2 {[%clk 0:01:10]}  Qe2 {[%clk 0:00:34]} 38. Qh4 {[%clk 0:01:09]}  Qb2 {[%clk 0:00:25]} 39. Qg3 {[%clk 0:01:02]}  Qe2 {[%clk 0:00:24]} 40. h6 {[%clk 0:01:00]}  Qh5+ {[%clk 0:00:23]} 41. Kg2 {[%clk 0:00:59]}  g6 {[%clk 0:00:23]} 42. Qf4 {[%clk 0:00:55]}  Qd1 {[%clk 0:00:13]} 43. h7+ {[%clk 0:00:52]}  Kxh7 {[%clk 0:00:12]} 44. Qxf7+ {[%clk 0:00:52]}  Bg7 {[%clk 0:00:12]} 45. Qxe6 {[%clk 0:00:52]}  Qxa4 {[%clk 0:00:11]} 46. Qh3+ {[%clk 0:00:47]}  Kg8 {[%clk 0:00:10]} 47. Qc8+ {[%clk 0:00:46]}  Kh7 {[%clk 0:00:11]} 48. Qh3+ {[%clk 0:00:19]}  Kg8 {[%clk 0:00:11]} 49. Qc8+ {[%clk 0:00:19]}  Kh7 {[%clk 0:00:08]} 50. Qh3+ {[%clk 0:00:19]} 1/2-1/2


[Site "https://www.chess.com"]

[Event "Titled Tuesday Blitz July 4 Early 2023"]
[White "Wang, Alexander J"]
[Black "Moral Garcia, Serafin"]
[WhiteFideId "30955270"]
[BlackFideId "2201925"]
[WhiteElo "2291"]
[BlackElo "2549"]
[Result "1-0"]
[Round "10"]
[TimeControl "180+2"]
[Date "2023.07.04"]
[WhiteClock "0:00:03"]
[BlackClock "0:01:44"]
[Board "133"]

1. e4 {[%clk 0:03:00]}  c5 {[%clk 0:02:59]} 2. Nf3 {[%clk 0:03:00]}  e6 {[%clk 0:02:59]} 3. d4 {[%clk 0:02:59]}  cxd4 {[%clk 0:03:00]} 4. Nxd4 {[%clk 0:03:00]}  Nc6 {[%clk 0:03:01]} 5. Nc3 {[%clk 0:02:59]}  Qc7 {[%clk 0:03:00]} 6. g3 {[%clk 0:02:58]}  a6 {[%clk 0:02:59]} 7. Bg2 {[%clk 0:02:57]}  d6 {[%clk 0:02:56]} 8. O-O {[%clk 0:02:54]}  Bd7 {[%clk 0:02:56]} 9. Be3 {[%clk 0:02:48]}  Nf6 {[%clk 0:02:52]} 10. h3 {[%clk 0:02:44]}  b5 {[%clk 0:02:48]} 11. a3 {[%clk 0:02:42]}  Be7 {[%clk 0:02:47]} 12. Nde2 {[%clk 0:02:40]}  Ne5 {[%clk 0:02:47]} 13. b3 {[%clk 0:02:33]}  Rc8 {[%clk 0:02:46]} 14. Qd2 {[%clk 0:02:32]}  O-O {[%clk 0:02:46]} 15. f4 {[%clk 0:02:29]}  Ng6 {[%clk 0:02:46]} 16. Rad1 {[%clk 0:02:21]}  Rfd8 {[%clk 0:02:45]} 17. Bf3 {[%clk 0:01:59]}  Bc6 {[%clk 0:02:44]} 18. h4 {[%clk 0:01:51]}  Nf8 {[%clk 0:02:43]} 19. Nd4 {[%clk 0:01:49]}  Bb7 {[%clk 0:02:42]} 20. Nce2 {[%clk 0:01:35]}  d5 {[%clk 0:02:40]} 21. e5 {[%clk 0:01:34]}  Ne4 {[%clk 0:02:40]} 22. Bxe4 {[%clk 0:01:27]}  dxe4 {[%clk 0:02:41]} 23. c3 {[%clk 0:01:23]}  Nd7 {[%clk 0:02:32]} 24. f5 {[%clk 0:01:10]}  exf5 {[%clk 0:02:24]} 25. Rxf5 {[%clk 0:01:08]}  Nxe5 {[%clk 0:02:24]} 26. Bf4 {[%clk 0:01:03]}  Bd6 {[%clk 0:02:23]} 27. Bxe5 {[%clk 0:00:59]}  Bxe5 {[%clk 0:02:23]} 28. Rdf1 {[%clk 0:00:59]}  f6 {[%clk 0:02:19]} 29. Qe3 {[%clk 0:00:57]}  Qc5 {[%clk 0:02:12]} 30. b4 {[%clk 0:00:44]}  Qc4 {[%clk 0:02:12]} 31. g4 {[%clk 0:00:40]}  Qd3 {[%clk 0:02:10]} 32. Qxd3 {[%clk 0:00:31]}  exd3 {[%clk 0:02:10]} 33. Nf4 {[%clk 0:00:29]}  Rxc3 {[%clk 0:02:09]} 34. Nfe6 {[%clk 0:00:27]}  Re8 {[%clk 0:02:07]} 35. g5 {[%clk 0:00:23]}  Be4 {[%clk 0:02:04]} 36. R5f2 {[%clk 0:00:17]}  f5 {[%clk 0:02:03]} 37. Nxf5 {[%clk 0:00:14]}  Rcc8 {[%clk 0:01:52]} 38. Ne7+ {[%clk 0:00:08]}  Kh8 {[%clk 0:01:52]} 39. Nxc8 {[%clk 0:00:08]}  h5 {[%clk 0:01:50]} 40. Rf8+ {[%clk 0:00:08]}  Rxf8 {[%clk 0:01:50]} 41. Rxf8+ {[%clk 0:00:09]}  Kh7 {[%clk 0:01:51]} 42. Rd8 {[%clk 0:00:09]}  Kg6 {[%clk 0:01:50]} 43. Ne7+ {[%clk 0:00:08]}  Kf7 {[%clk 0:01:50]} 44. Nc6 {[%clk 0:00:06]}  Bb2 {[%clk 0:01:49]} 45. Nc5 {[%clk 0:00:04]}  Bxc6 {[%clk 0:01:48]} 46. Nxd3 {[%clk 0:00:04]}  Be5 {[%clk 0:01:44]} 47. Nxe5+ {[%clk 0:00:03]} 1-0


[Site "https://www.chess.com"]

[Event "Titled Tuesday Blitz July 4 Early 2023"]
[White "Rizzo, Tobias"]
[Black "Legenia, Artem"]
[WhiteFideId "30942691"]
[BlackFideId "14136945"]
[WhiteElo "2454"]
[BlackElo "2285"]
[Result "1-0"]
[Round "10"]
[TimeControl "180+2"]
[Date "2023.07.04"]
[WhiteClock "0:00:09"]
[BlackClock "0:00:12"]
[Board "134"]

1. d4 {[%clk 0:03:00]}  c5 {[%clk 0:02:54]} 2. d5 {[%clk 0:03:00]}  e5 {[%clk 0:02:51]} 3. e4 {[%clk 0:03:00]}  d6 {[%clk 0:02:52]} 4. Nc3 {[%clk 0:03:01]}  Nf6 {[%clk 0:02:49]} 5. h3 {[%clk 0:03:01]}  Be7 {[%clk 0:02:50]} 6. Nf3 {[%clk 0:03:01]}  O-O {[%clk 0:02:50]} 7. Be2 {[%clk 0:03:01]}  Ne8 {[%clk 0:02:42]} 8. O-O {[%clk 0:02:52]}  g6 {[%clk 0:02:42]} 9. Nd2 {[%clk 0:02:53]}  Ng7 {[%clk 0:02:40]} 10. a4 {[%clk 0:02:52]}  Nd7 {[%clk 0:02:37]} 11. a5 {[%clk 0:02:48]}  f5 {[%clk 0:02:37]} 12. Nc4 {[%clk 0:02:48]}  Nf6 {[%clk 0:02:37]} 13. f3 {[%clk 0:02:45]}  Rb8 {[%clk 0:02:35]} 14. Bh6 {[%clk 0:02:33]}  Kh8 {[%clk 0:02:33]} 15. Qd2 {[%clk 0:02:28]}  Ng8 {[%clk 0:02:32]} 16. Be3 {[%clk 0:02:13]}  f4 {[%clk 0:02:28]} 17. Bf2 {[%clk 0:02:11]}  g5 {[%clk 0:02:28]} 18. Rab1 {[%clk 0:02:00]}  Bd7 {[%clk 0:02:28]} 19. b4 {[%clk 0:02:00]}  b5 {[%clk 0:02:25]} 20. axb6 {[%clk 0:01:59]}  axb6 {[%clk 0:02:25]} 21. bxc5 {[%clk 0:01:54]}  bxc5 {[%clk 0:02:25]} 22. Rxb8 {[%clk 0:01:52]}  Qxb8 {[%clk 0:02:26]} 23. Rb1 {[%clk 0:01:53]}  Qa7 {[%clk 0:02:24]} 24. Nb5 {[%clk 0:01:47]}  Bxb5 {[%clk 0:02:24]} 25. Rxb5 {[%clk 0:01:48]}  Nf6 {[%clk 0:02:18]} 26. Qc3 {[%clk 0:01:44]}  Rb8 {[%clk 0:02:15]} 27. Qb3 {[%clk 0:01:44]}  Nd7 {[%clk 0:02:11]} 28. Na5 {[%clk 0:01:39]}  Bd8 {[%clk 0:02:01]} 29. Nc6 {[%clk 0:01:37]}  Rxb5 {[%clk 0:02:01]} 30. Qxb5 {[%clk 0:01:31]}  Qb6 {[%clk 0:01:55]} 31. Qa4 {[%clk 0:01:10]}  Bc7 {[%clk 0:01:21]} 32. Qa8+ {[%clk 0:01:08]}  Nb8 {[%clk 0:01:21]} 33. Kh2 {[%clk 0:00:59]}  h5 {[%clk 0:00:49]} 34. Be1 {[%clk 0:00:58]}  Qb1 {[%clk 0:00:28]} 35. Ba5 {[%clk 0:00:29]}  Bxa5 {[%clk 0:00:25]} 36. Qxa5 {[%clk 0:00:29]}  Kh7 {[%clk 0:00:23]} 37. Qd8 {[%clk 0:00:27]}  Qxc2 {[%clk 0:00:20]} 38. Ne7 {[%clk 0:00:20]}  g4 {[%clk 0:00:11]} 39. Qg8+ {[%clk 0:00:16]}  Kh6 {[%clk 0:00:11]} 40. Qh8+ {[%clk 0:00:16]}  Kg5 {[%clk 0:00:12]} 41. Qxg7+ {[%clk 0:00:16]}  Kh4 {[%clk 0:00:12]} 42. Nf5# {[%clk 0:00:09]} 1-0


[Site "https://www.chess.com"]

[Event "Titled Tuesday Blitz July 4 Early 2023"]
[White "LangesNasenhaar"]
[Black "Modric, Nesa"]
[BlackFideId "922579"]
[WhiteElo "2433"]
[BlackElo "2256"]
[Result "0-1"]
[Round "10"]
[TimeControl "180+2"]
[Date "2023.07.04"]
[WhiteClock "0:00:07"]
[BlackClock "0:00:30"]
[Board "135"]

1. d4 {[%clk 0:02:59]}  d5 {[%clk 0:02:59]} 2. Nc3 {[%clk 0:03:00]}  e6 {[%clk 0:02:55]} 3. Bf4 {[%clk 0:03:00]}  a6 {[%clk 0:02:54]} 4. e3 {[%clk 0:03:00]}  c5 {[%clk 0:02:54]} 5. Nf3 {[%clk 0:02:56]}  Nc6 {[%clk 0:02:54]} 6. dxc5 {[%clk 0:02:54]}  Bxc5 {[%clk 0:02:52]} 7. Bd3 {[%clk 0:02:55]}  Nf6 {[%clk 0:02:51]} 8. O-O {[%clk 0:02:54]}  b5 {[%clk 0:02:50]} 9. e4 {[%clk 0:02:54]}  dxe4 {[%clk 0:02:48]} 10. Nxe4 {[%clk 0:02:54]}  Nxe4 {[%clk 0:02:48]} 11. Bxe4 {[%clk 0:02:55]}  Bb7 {[%clk 0:02:45]} 12. Qe2 {[%clk 0:02:52]}  O-O {[%clk 0:02:20]} 13. Rad1 {[%clk 0:02:46]}  Qf6 {[%clk 0:02:16]} 14. Bg5 {[%clk 0:02:37]}  Qxb2 {[%clk 0:02:15]} 15. Rd7 {[%clk 0:02:36]}  Ne5 {[%clk 0:01:45]} 16. Rxb7 {[%clk 0:02:28]}  Nxf3+ {[%clk 0:01:34]} 17. Qxf3 {[%clk 0:02:26]}  Qxa2 {[%clk 0:01:34]} 18. Qh3 {[%clk 0:02:01]}  f5 {[%clk 0:01:25]} 19. Bd3 {[%clk 0:01:47]}  Qd5 {[%clk 0:01:23]} 20. Qf3 {[%clk 0:01:32]}  Qd6 {[%clk 0:01:13]} 21. Rd1 {[%clk 0:01:24]}  h6 {[%clk 0:01:04]} 22. Bc4 {[%clk 0:00:51]}  Qe5 {[%clk 0:00:55]} 23. Bf4 {[%clk 0:00:51]}  Qf6 {[%clk 0:00:54]} 24. Qg3 {[%clk 0:00:40]}  Bd4 {[%clk 0:00:44]} 25. Bb3 {[%clk 0:00:20]}  Rad8 {[%clk 0:00:42]} 26. Re1 {[%clk 0:00:17]}  Rfe8 {[%clk 0:00:40]} 27. h4 {[%clk 0:00:15]}  Kh8 {[%clk 0:00:39]} 28. Be5 {[%clk 0:00:12]}  Bxe5 {[%clk 0:00:35]} 29. Rxe5 {[%clk 0:00:13]}  Rd1+ {[%clk 0:00:33]} 30. Kh2 {[%clk 0:00:13]}  Rd4 {[%clk 0:00:32]} 31. Rxe6 {[%clk 0:00:09]}  Rxh4+ {[%clk 0:00:31]} 32. Kg1 {[%clk 0:00:09]}  Qa1+ {[%clk 0:00:31]} 33. Re1 {[%clk 0:00:07]}  Qxe1# {[%clk 0:00:30]} 0-1


[Site "https://www.chess.com"]